Cogmind - Beta 16.1 @@@ ROGUE MODE // 2026.04.01 @ 17:25:57 Player: Gatamar Result: Destroyed by Z7-ATD(R) with Subdweller Laser Performance ------------- Evolutions (0) 0 Regions Visited (2) 400 Robots Destroyed (27) 135 Value Destroyed (548) 548 Prototype IDs (1) 20 Alien Tech Used (0) 0 Bonus (0) 0 TOTAL SCORE: 1103 Bonus ------- None Cogmind --------- Core Integrity 0/250 Matter 237/300 Energy 100/100 System Corruption 0% Temperature Cool (6) Movement Treading (240) Ox1 Location -10/Subcaves Parts ------- > --- POWER (1) -------- (None) > --- PROPULSION (2) --- Light Treads Light Treads > --- UTILITY (2) ------ High-capacity Storage Unit Seismic Detector > --- WEAPON (2) ------- Improved Assault Rifle Improved Assault Rifle > --- INVENTORY (20) --- Light Ion Engine Light Treads Light Treads Wheel Wheel Wheel Wheel Medium Matter Pod (0) High-capacity Matter Pod (200) Signal Interpreter Seismic Detector Tractor Beam Improved Assault Rifle Mining Laser Mace Mace Peak State ------------ > --- POWER ------------ Light Ion Engine > --- PROPULSION ------- Light Treads Light Treads > --- UTILITY ---------- High-capacity Storage Unit Seismic Detector > --- WEAPON ----------- Improved Assault Rifle Improved Assault Rifle > --- INVENTORY -------- Light Ion Engine Light Treads Light Treads Wheel Wheel Wheel Wheel Medium Matter Pod High-capacity Matter Pod Signal Interpreter Seismic Detector Tractor Beam Improved Assault Rifle Mining Laser Mace Mace [Rating: 13] Favorites ----------- Power Light Ion Engine Engine Light Ion Engine Propulsion Light Treads Treads Light Treads Utility High-capacity Storage Unit Device Seismic Detector Storage High-capacity Storage Unit Protection Light Armor Plating Weapon Improved Assault Rifle Energy Cannon Beam Cannon Ballistic Gun Improved Assault Rifle Special Weapon Mining Laser Build | -11 -10 -10 ------- Run | Yrd Mat Sub Slots Evolved . | . . . Power . | . . . Propulsion . | . . . Utility . | . . . Weapon . | . . . Parts Attached 19 | 7 12 . Power 2 | 1 1 . Engine 2 | 1 1 . Core . | . . . Reactor . | . . . Propulsion 4 | 2 2 . Treads 4 | 2 2 . Leg . | . . . Wheel . | . . . Hover . | . . . Flight . | . . . Utility 6 | 2 4 . Device 3 | 1 2 . Storage 2 | 1 1 . Processor . | . . . Hackware . | . . . Protection 1 | . 1 . Artifact . | . . . Weapon 7 | 2 5 . Energy Gun . | . . . Energy Cannon 1 | . 1 . Ballistic Gun 5 | 2 3 . Ballistic Cannon . | . . . Launcher . | . . . Special Weapon 1 | . 1 . Impact Weapon . | . . . Slashing Weapon . | . . . Piercing Weapon . | . . . Special Melee Weapon . | . . . Unidentified Prototypes 1 | . 1 . Parts Lost 2 | . 1 1 Power 1 | . . 1 Propulsion . | . . . Utility 1 | . 1 . Weapon . | . . . Highest Loss Streak 1 | . 1 1 To Critical Strikes . | . . . Average Backups 10 | 2 10 16 Power . | . 1 1 Propulsion 3 | 1 3 6 Utility 2 | . 2 5 Weapon 2 | . 2 4 Tool/Special . | . . . Unused Backups 12 | 2 1 9 Power . | . . . Propulsion 6 | 2 . 4 Utility 3 | . . 3 Weapon 3 | . 1 2 Tool/Special . | . . . Average Slot Usage (%) 99 | . 99 98 Engine 13 | . 14 12 Treads 28 | . 28 28 Device 10 | . 10 14 Storage 14 | . 14 14 Protection 3 | . 3 . Ballistic Gun 17 | . 17 18 Special Weapon 10 | . 10 9 Peak Build Rating 13 | 7 12 13 Average Rating 10 | 5 10 11 On Entrance 6 | . 7 11 Avg Prop Armor Cover (%) . | . . . Naked Turns . | . . . Heaviest Build 52 | 12 52 48 Greatest Support 40 | 40 40 40 Greatest Overweight (x) 1 | . 1 1 Average Overweight (x) . | . . 1 Largest Inventory Capacity 20 | 8 20 20 Average Capacity 15 | 7 16 20 Most Carried 16 | 5 16 16 Average Carried 10 | 2 10 16 Final Capacity 20 | 8 20 20 Final Carried 16 | 4 16 16 Class Distribution -------------------- 100% | Mutant Dominant Class ---------------- Mutant | -10/Materials Mutant | -10/Subcaves Resources | -11 -10 -10 ----------- Run | Yrd Mat Sub Matter Collected 956 | 326 630 . Remotely 104 | . 104 . Salvage Created 1008 | 150 828 30 Parts 63 | 10 50 3 Haulers Intercepted 2 | . 2 . Recyclers Shooed 2 | 1 1 . Parts Field Recycled . | . . . Retrieved Matter . | . . . Parts Self-Destructed . | . . . Prevented . | . . . Parts Restored . | . . . Kills | -11 -10 -10 ------- Run | Yrd Mat Sub Combat Hostiles Destroyed 14 | . 13 1 Guns 12 | . 11 1 Cannons 2 | . 2 . Classes Destroyed 9 | 2 6 1 Builder 1 | . 1 . Tunneler 3 | 3 . . Hauler 2 | . 2 . Recycler 4 | 1 3 . Operator 1 | . 1 . Watcher 2 | . 2 . Swarmer 3 | . 3 . Grunt 10 | . 10 . Subdweller 1 | . . 1 Best Kill Streak 5 | 4 5 1 Combat Bots Only 3 | . 3 1 Max Kills in Single Turn 2 | 2 1 1 Gunslinging . | . . . Exploded . | . . . Melee . | . . . Uniques/NPCs Destroyed . | . . . Combat | -11 -10 -10 -------- Run | Yrd Mat Sub Hostile Shots Fired 107 | . 87 20 Missed 26 | . 20 6 Hits 81 | . 67 14 Projectile 81 | . 67 14 Critical Strikes 1 | . . 1 Damage Taken 1081 | . 748 333 Core 255 | . 140 115 Absorbed by Shields . | . . . Core Remaining (%) 100 | 100 . . Volleys Fired 110 | 14 88 8 Largest 2 | 2 2 2 Hottest 123 | 40 123 46 Shots Fired 179 | 28 135 16 Gun 139 | 28 95 16 Cannon 10 | . 10 . Launcher . | . . . Special 30 | . 30 . Kinetic 139 | 28 95 16 Thermal 40 | . 40 . Explosive . | . . . Electromagnetic . | . . . Robot Hit Streak 11 | 4 9 11 Robot Miss Streak 3 | 3 3 1 Penetration Max . | . . . Secondary Targets . | . . . Shots Hit Robots 101 | 14 73 14 Core Hits 44 | 7 35 2 Critical Kills . | . . . Critical Parts Destroyed 1 | . 1 . Critical Strikes 1 | . 1 . Destroy 1 | . 1 . Melee Attacks . | . . . Impact . | . . . Slashing . | . . . Piercing . | . . . Sneak Attacks . | . . . Combat Hostiles . | . . . Follow-up Attacks . | . . . Damage Inflicted 1475 | 150 1104 221 Guns 1254 | 150 883 221 Cannons 138 | . 138 . Explosions . | . . . Melee . | . . . Ramming 35 | . 35 . Kinetic 1254 | 150 883 221 Thermal 186 | . 186 . Explosive . | . . . Electromagnetic . | . . . Impact . | . . . Slashing . | . . . Piercing . | . . . Highest Corruption . | . . . Average Corruption . | . . . Corruption Purged . | . . . Corruption Blocked . | . . . Overload Shots . | . . . Overflow Damage 1 | . 1 . Projectiles 1 | . 1 . Explosions . | . . . Melee . | . . . Knockbacks 1 | . 1 . Impact 1 | . 1 . Kinetic . | . . . Secondary . | . . . Self-Inflicted Damage . | . . . Shots . | . . . Rammed 11 | . 11 . Targets Rammed 11 | . 11 . Kicked . | . . . Crushed . | . . . Highest Temperature 275 | . 210 275 Average Temperature 45 | . 40 142 Received Heat Transfer 723 | . 321 402 Effects 3 | . 3 . Interference 3 | . 3 . Siege Activations . | . . . Martial Activations . | . . . Shielding Activations . | . . . Robots Disrupted . | . . . Combat Hostiles . | . . . Robots Corrupted . | . . . Combat Hostiles . | . . . Parts Fried . | . . . Impact Corruptions . | . . . Robots Melted . | . . . Combat Hostiles . | . . . Parts Melted . | . . . Heat Transferred 396 | . 396 . Parts Sabotaged . | . . . Parts Stolen . | . . . Parts Stripped . | . . . Power Chain Reactions . | . . . Alert | -11 -10 -10 ------- Run | Yrd Mat Sub Maximum Alert Level . | . . . Low Security (%) 100 | 100 100 . Level 1 . | . . . Level 2 . | . . . Level 3 . | . . . Level 4 . | . . . Level 5 . | . . . High Security . | . . . Max Security . | . . . Peak Influence 99 | 10 99 . Initial . | . . . Average 34 | . 37 . Influence Increases 486 | 20 466 . Destroy 0b10 Robot/C 260 | . 260 . Destroy 0b10 Robot/NC 65 | 20 45 . Destroy Leader 78 | . 78 . Successful Hack 29 | . 29 . Disable Machine 15 | . 15 . Destroy Structure 24 | . 24 . Partial Spotted 15 | . 15 . Influence Decreases 486 | 20 434 32 Entered New Map 16 | . . 16 Time Decay 470 | 20 434 16 Squads Dispatched 4 | . 4 . Investigation 1 | . 1 . Extermination . | . . . Reinforcement 3 | . 3 . Assault . | . . . Garrison . | . . . Intercept . | . . . Searches Triggered . | . . . Construction Impeded . | . . . Haulers Reinforced . | . . . Active Scanning Responses . | . . . Cargo Convoy Interrupts . | . . . Stealth | -11 -10 -10 --------- Run | Yrd Mat Sub Distress Signals 2 | . 2 . Communications Jammed . | . . . Distress Signals . | . . . Times Spotted 26 | . 24 2 Peak Tracking Total 6 | . 6 2 Tactical Retreats . | . . . Traps | -11 -10 -10 ------- Run | Yrd Mat Sub Traps Triggered 2 | . 2 . Indirectly . | . . . Trap Hack Attempts . | . . . Triggered . | . . . Disarmed . | . . . Reprogrammed . | . . . Reused . | . . . Traps Extracted . | . . . Installed . | . . . Triggered . | . . . Machines | -11 -10 -10 ---------- Run | Yrd Mat Sub Machines Disabled 1 | . 1 . Max in Single Turn 1 | . 1 . Machines Repaired . | . . . Machines Dismantled . | . . . Machines Sabotaged . | . . . Overloaded Fab Kills . | . . . Hacking | -11 -10 -10 --------- Run | Yrd Mat Sub Machines Accessed 5 | . 5 . Terminals 3 | . 3 . Fabricators . | . . . Repair Stations 1 | . 1 . Recycling Units 1 | . 1 . Scanalyzers . | . . . Garrison Access . | . . . Total Hacks 11 | . 11 . Successful 6 | . 6 . Failed 5 | . 5 . Catastrophic . | . . . Database Lockouts . | . . . Manual 3 | . 3 . Terminals 7 | . 7 . Fabricators . | . . . Repair Stations 3 | . 3 . Recycling Units 1 | . 1 . Scanalyzers . | . . . Garrison Access . | . . . Terminal Hacks 1 | . 1 . Maintenance Status 1 | . 1 . Fabricator Hacks . | . . . Repair Station Hacks 1 | . 1 . Scan Component 1 | . 1 . Recycling Unit Hacks 1 | . 1 . Report Inventory 1 | . 1 . Scanalyzer . | . . . Garrison Access Hacks . | . . . Unauthorized Hacks 3 | . 3 . Terminals 3 | . 3 . Track 1 | . 1 . Botnet 2 | . 2 . Fabricators . | . . . Repair Stations . | . . . Recycling Units . | . . . Scanalyzers . | . . . Garrison Access . | . . . Data Cores Recovered . | . . . Used . | . . . Hacking Detections 4 | . 4 . Full Trace Events . | . . . Feedback Events . | . . . Feedback Blocked . | . . . Robot Schematics Acquired . | . . . Robots Built . | . . . Authchips . | . . . Time . | . . . Total Robot Build Rating . | . . . Part Schematics Acquired . | . . . Parts Built . | . . . Authchips . | . . . Time . | . . . Total Part Build Rating . | . . . Part Studies Acquired . | . . . Parts Repaired . | . . . Time . | . . . Parts Recycled . | . . . Recycled Matter . | . . . Retrieved Matter . | . . . Retrieved Components . | . . . Parts Scanalyzed . | . . . Part Schematics Acquired . | . . . Parts Damaged . | . . . Bothacking | -11 -10 -10 ------------ Run | Yrd Mat Sub Used RIF Installer . | . . . Robots Hacked . | . . . Non-combat . | . . . Combat . | . . . Robot Hacks Applied . | . . . Relay Couplers Released . | . . . Fabnet Peak Effective % . | . . . Robots Rewired . | . . . Allies Hacked . | . . . Hacks Repelled . | . . . Allies | -11 -10 -10 -------- Run | Yrd Mat Sub Total Allies . | . . . Largest Group . | . . . Highest-Rated Group . | . . . Highest-Rated Ally . | . . . Total Orders . | . . . Ally Attacks . | . . . Total Damage . | . . . Kills . | . . . Allies Corrupted . | . . . Allies Melted . | . . . Intel | -11 -10 -10 ------- Run | Yrd Mat Sub Active Infowar (turns) 1335 | 71 1177 87 Seismic 1335 | 71 1177 87 Robot Analysis Total . | . . . Derelict Logs Recovered 1 | . . 1 Drone Launches . | . . . Drone Recoveries . | . . . Exploration | -11 -10 -10 ------------- Run | Yrd Mat Sub Turns Passed 2501 | 183 2231 87 Spaces Moved 967 | 84 858 25 Core 7 | 7 . . Treads 960 | 77 858 25 Legs . | . . . Wheels . | . . . Hover . | . . . Flight . | . . . Fastest Speed 50 | 50 160 240 Average Speed 207 | 150 211 240 Slowest Speed 240 | 160 240 240 Overloaded Moves . | . . . Propulsion Burnouts . | . . . Robots Hopped . | . . . Potential Cave-ins . | . . . Cave-ins Triggered . | . . . Exploration Rate (%) 34 | 4 95 4 Regions Visited 2 Branch Regions 1 Pre-discovered Areas 1 | . . 1 Known Exits Taken . | . . . Unknown Exits Taken 2 | 1 1 . Scrap Searched . | . . . Spaces Dug 16 | . 16 . Terrain Destroyed 22 | . 22 . Melee . | . . . Projectile 22 | . 22 . AOE . | . . . Terrain Rammed . | . . . Walls Destroyed . | . . . Machines Disabled . | . . . Actions | -11 -10 -10 --------- Run | Yrd Mat Sub Total 1211 | 113 1063 35 Wait 65 | . 65 . Move 965 | 83 857 25 Hop . | . . . Pick Up 24 | 7 17 . Fast Attach 6 | 6 . . Attach 2 | 1 1 . Detach . | . . . Swap 20 | . 18 2 Drop 8 | 2 6 . Fire 110 | 14 88 8 Melee . | . . . Ram . | . . . Kick . | . . . Crush 11 | . 11 . Escape Stasis . | . . . Rewire . | . . . Trap . | . . . Miscellaneous . | . . . Route ------- -11/Scrapyard -10/Materials (discovered 5 exits: [*Mat x3] / [*Min] / [*Sub]) -10/Subcaves History --------- Turn | Location | Event 10 | -11/Scrapyard | Discovered new exit (range 13) 184 | -11/Scrapyard | Entered Materials 303 | -10/Materials | Build established: Mutant 371 | -10/Materials | Discovered new exit (range 16) 555 | -10/Materials | Discovered new exit (range 11) 1448 | -10/Materials | Core integrity fell below 50% 2245 | -10/Materials | Discovered new exit (range 15) 2322 | -10/Materials | Discovered new exit (range 8) 2392 | -10/Materials | Discovered new exit (range 7) 2415 | -10/Materials | Entered Subcaves 2420 | -10/Subcaves | Learned location of Zion (-7) 2490 | -10/Subcaves | Core integrity fell below 20% 2502 | -10/Subcaves | Destroyed by Z7-ATD(R) with Subdweller Laser Last Messages --------------- 02388_ U-05 Engineer lays Concrete. 02391_ T-07 Excavator is excavating. 02391_ U-05 Engineer lays Concrete. 02392_ EXIT=FOUND 02392_ U-05 Engineer lays Concrete. 02395_ U-05 Engineer builds a Wall. 02403_ U-05 Engineer lays Concrete. 02405_ U-05 Engineer builds a Wall. 02408_ U-05 Engineer lays Concrete. 02410_ U-05 Engineer builds a Wall. 02411_ U-05 Engineer lays Concrete. 02412_ U-05 Engineer builds a Wall. LOCATION=UNKNOWN AMBIENT_HEAT=-10 GOAL=ESCAPE 02420_ Acquired derelict log, extracted data. World map updated: -7/Zion. 02477_ Critical hit (Meltdown: +300). 02491_ Lgt. Ion Engine destroyed. 02493_ TA-V8K(R) destroyed. Map ----- +----------------------------------------------------+ | ?????????????????????????????????????????????????? | | ?????????????????????????????????????????????????? | | ?????????????????????????????????????????????????? | | ?????????????????????????????????????????????????? | | ?????????????????????????????????????????????????? | | ?????????????????????????????????????????????????? | | ?????????????????????????????????????????????????? | | ?????????????????????????????????????????????????? | | ?????????????????????????????????????????????????? | | ???????##????????????????????????????????????????? | | ???????# #############???????????????????????????? | | ???????# ##??????????????????????????? | | ???????# #??????????????????????????? | | ???????# ####???????????????????????? | | ???????# #### # ##??????????????????????? | | ???????# ##??# ##?????????????????????? | | ???????# #???# #?????????????????????? | | ???????# #???# #?????????????????????? | | ???????#### ##??### #?????????????????????? | | ??????????### ?### #?????????????????????? | | ????????????# #?# #?????????????????????? | | ????????????# ## # #?????????????????????? | | ???????????? ## ## #?????????????????????? | | ????????????# ## #; #?????????????????????? | | ????????????# ## ## ###???????????????????? | | ????????????? # @ ##??????????????????? | | ???????????# #??????????????????? | | ???????????## #??????????????????? | | ????????????##### #??????????????????? | | ????????????????### #?????????????????? | | ??????????????????####### != #????????????????? | | ????????????????????????###%& ???????????????? | | ???????????????????????????*R ??????????????? | | ??????????????????????????? ?????????????? | | ??????????????????????????? ???????????? | | ??????????????????????????? ##??????????? | | ??????????????????????????? ## #???????????? | | ??????????????????????????? ##? ???????????? | | ???????????????????????????? #??? ?????????????? | | ???????????????????????????? ??????????????????? | | ???????????????????????????? ??????????????????? | | ???????????????????????????? ????????????????????? | | ?????????????????????????????????????????????????? | | ?????????????????????????????????????????????????? | | ?????????????????????????????????????????????????? | | ?????????????????????????????????????????????????? | | ?????????????????????????????????????????????????? | | ?????????????????????????????????????????????????? | | ?????????????????????????????????????????????????? | | ?????????????????????????????????????????????????? | +----------------------------------------------------+ Best States ------------- Heat Dissipation 25 Energy Generation 10 Energy Capacity 125 Matter Stores 300 Matter Capacity 300 Sight Range 16 Terrain Scan Density 10 Armor Coverage 150 Evasion (%) 40 Recoil Reduction 2 Item Schematics ----------------- None Robot Schematics ------------------ None Fabricated ------------ Nothing Repaired ---------- Nothing Studied --------- None Alien Tech Used ----------------- None Achievements -------------- None Challenges ------------ None Game ------ Seed RainbowPartitionBox Manual? 0 Play Time 00:13:45 Cumulative 34.4 hours Start 2026.04.01 @ 17:10:21 End 2026.04.01 @ 17:25:57 Sessions 1 Manual Loads 0 Difficulty Rogue Special Mode None Game No. 86 Rogue 86 Adventurer 0 Explorer 0 Win Type - Total 0 Types 0/0/0/0/0/0/0/0/0/0 Lore% 28 Gallery% 29 Achievement% 22 Wizard Run 0 Options --------- Layout 2 ASCII 0 Keyboard 0 Movement Numpad Keybinds 0 Fullscreen 1 Font 32/SmallcapsGlow Map View 50x44 Zoom Use 0% Tactical HUD 1 Map Filters NONE Filters NONE Steam 1 RUN: 6deba195-c437-4c98-aec2-c1a43a2da30a